bitfinex/quotes_ETHUSD_20251028
["timestamp","ask_amount","ask_price","bid_price","bid_amount"]
[1761680764478,0.51190815,4053.8,4052.7,0.4635]
[1761680764681,2.25,4053.7,4052.7,2.93096392]
[1761680764911,3.8052,4053.7,4053.1,2.46724376]
[1761680765099,2.25,4053.7,4053.2,2.46717558]
[1761680765277,2.251,4053.9,4053.3,0.48863199]
[1761680765479,0.63993197,4054.7,4053.4,0.02467064]
[1761680765705,2.251,4054.6,4053.3,0.48863199]
[1761680765916,2.252,4054.7,4054.4,2.46642609]
[1761680766082,2.91920367,4055.0,4054.5,2.46635675]
[1761680766285,2.91920367,4055.0,4054.3,2.46646107]
[1761680766575,2.91920367,4055.0,4054.4,2.46644342]
[1761680766816,0.6045,4054.9,4053.5,0.4635]
[1761680767011,1.5552,4054.8,4053.5,0.4635]
[1761680767210,0.51010952,4054.8,4054.0,2.46668725]
[1761680767412,0.51010952,4054.8,4054.1,2.46662501]
[1761680767612,2.66980952,4054.9,4054.1,2.46662501]
[1761680767814,2.66980952,4054.9,4053.5,0.4635]
[1761680768428,0.63993197,4055.5,4053.5,0.4635]
[1761680768631,0.85324263,4055.8,4055.0,2.46608258]
[1761680768632,2.252,4055.7,4055.0,2.46608258]
[1761680768833,2.252,4055.7,4054.8,0.2018]
[1761680769130,3.8072,4055.7,4055.2,2.46596603]
[1761680769331,0.51013061,4055.6,4055.0,2.46605586]
[1761680769518,0.51013061,4055.6,4054.8,0.2018]
[1761680769717,1.5552,4055.5,4054.8,0.2018]
[1761680769917,4.53111958,4055.5,4054.5,2.46634089]
[1761680770231,0.405504,4055.2,4054.1,0.2018]
[1761680770432,3.8082,4055.2,4054.2,0.02466577]
[1761680770608,0.63993197,4055.7,4054.2,0.4298]
[1761680770820,2.252,4055.6,4055.0,2.46603059]
[1761680771417,2.252,4055.6,4055.1,2.46601453]
[1761680771611,2.252,4055.6,4054.6,0.4298]
[1761680771812,0.5103039,4055.8,4054.6,0.7194317]
[1761680772015,0.5103039,4056.3,4055.7,0.2026]
[1761680772203,2.252,4056.6,4055.8,2.4655468]
[1761680772404,2.252,4056.6,4055.7,0.2026]
[1761680772701,2.252,4056.6,4053.1,0.19]
[1761680772702,14.24354193,4055.8,4053.1,0.19]
[1761680772921,0.63993197,4054.8,4053.4,0.1898]
[1761680773107,1.5552,4054.6,4053.4,0.1898]
[1761680773308,3.8152,4054.5,4053.6,2.46692009]
[1761680773530,0.5103039,4054.4,4053.7,0.02466882]
[1761680773730,2.19513197,4055.0,4053.5,0.4298]
[1761680773933,2.262,4054.9,4053.5,0.4298]
[1761680774123,2.8022,4054.9,4053.5,0.4298]
[1761680774322,0.405504,4054.7,4053.4,0.1898]
[1761680774505,1.5552,4054.6,4053.5,3.8]
[1761680774836,2.46644421,4054.5,4053.6,2.46694296]
[1761680775130,2.4664604,4054.4,4053.6,2.46694296]
[1761680775331,0.1232,4053.6,4053.5,6.26700382]
[1761680776617,0.1232,4053.6,4053.5,3.8]
[1761680777144,0.1232,4053.6,4053.5,2.46700382]
[1761680778020,0.1232,4053.6,4053.4,6.26705507]
[1761680778247,0.1232,4053.6,4053.5,2.46700382]
[1761680779042,0.1232,4053.6,4053.5,2.89680382]
[1761680779241,1.5552,4054.8,4054.1,2.46659461]
[1761680779545,0.1232,4053.8,4053.7,2.4668821]
[1761680779748,2.263,4055.1,4054.6,2.46628193]
[1761680779949,0.1232,4054.6,4054.1,2.263]
[1761680780128,0.1232,4054.6,4054.5,2.46639536]
[1761680780329,0.1232,4054.6,4054.5,2.89619536]
[1761680780925,0.1232,4054.6,4054.2,3.8]
[1761680781249,2.46566675,4055.7,4054.8,2.46620945]
[1761680781449,1.5552,4055.6,4054.9,2.46614776]
[1761680781747,2.9746927,4055.6,4054.5,2.46639536]
[1761680781948,5.26140734,4055.8,4054.9,2.46614502]
[1761680781949,0.50894276,4055.5,4054.9,2.46614502]
[1761680782249,0.50894276,4055.6,4054.9,2.46614502]
[1761680782750,0.50894276,4055.6,4054.9,2.46614816]
[1761680782917,0.50894276,4055.7,4055.3,2.46585951]
[1761680783246,2.70407473,4055.9,4055.3,2.46585951]
[1761680783447,2.70407473,4055.9,4055.1,0.2026]
[1761680783648,1.5552,4055.7,4055.1,2.46601636]
[1761680783817,0.50894276,4055.7,4055.3,2.46590792]
[1761680784019,0.63993197,4055.8,4055.2,2.46595894]
[1761680784356,0.63993197,4055.6,4055.2,2.46595894]
[1761680784649,1.14887473,4055.6,4055.1,2.46602207]
[1761680784823,0.63993197,4055.6,4055.2,2.46596619]
[1761680785026,1.14887473,4055.6,4055.1,2.46598353]
[1761680785351,0.50894276,4055.5,4055.1,2.46598353]
[1761680785741,0.50894276,4055.5,4055.2,2.46596543]
[1761680785943,0.63993197,4055.6,4055.5,2.4657872]
[1761680786250,0.50894276,4055.8,4055.7,2.4656656]
[1761680786628,0.50894276,4055.9,4055.7,2.4656656]
[1761680786819,0.50894276,4055.9,4055.7,6.2656656]
[1761680787023,0.50894276,4055.9,4055.7,8.5246656]
[1761680787252,0.50894276,4055.9,4055.8,2.46560481]
[1761680787555,0.50894276,4055.9,4055.7,6.059]
[1761680787724,0.50894276,4056.0,4055.7,6.059]
[1761680787919,0.50894276,4055.9,4055.7,6.059]
[1761680788121,0.50894276,4056.0,4055.7,6.059]
[1761680788425,0.50894276,4055.9,4055.7,3.8]
[1761680788654,0.405504,4055.6,4053.6,0.4298]
[1761680788954,0.64153618,4054.4,4053.4,2.6878]
[1761680789252,0.50894276,4054.3,4053.7,2.46682991]
[1761680789455,0.50894276,4054.3,4053.5,0.71776]
[1761680789755,0.64153618,4054.5,4053.7,2.4668821]
[1761680789756,0.50894276,4054.2,4053.7,2.4668821]
[1761680789952,1.15047894,4054.4,4053.8,3.8]
[1761680790152,0.50894276,4054.3,4053.9,2.262]
[1761680790359,0.50894276,4054.2,4053.9,2.262]
[1761680790749,2.97551244,4054.3,4053.9,2.262]
[1761680790964,2.97551244,4054.3,4053.8,3.8]
[1761680790965,0.50894276,4054.2,4053.8,6.061]
[1761680791268,0.50894276,4054.1,4053.8,6.061]
[1761680791565,0.50894276,4054.0,4053.8,3.8]
[1761680791759,0.64153618,4054.1,4053.4,4.72805574]
[1761680791760,0.1232,4053.8,4053.4,4.72805574]
[1761680792132,0.73824276,4053.9,4053.5,2.26]
[1761680792332,0.50894276,4054.0,4053.5,2.26]
[1761680792561,0.50894276,4053.9,4053.5,2.26]
[1761680792732,0.50894276,4054.0,4053.5,2.26]
[1761680792935,0.50894276,4053.9,4053.5,8.52699644]
[1761680793134,0.50894276,4054.0,4053.5,8.52699644]
[1761680793437,0.50894276,4054.1,4053.5,6.06]
[1761680793637,0.50894276,4054.0,4053.5,6.06]
[1761680794381,2.97564455,4054.0,4053.5,6.06]
[1761680794557,0.50894276,4053.9,4053.5,6.06]
[1761680794758,0.50894276,4053.9,4053.3,0.002]
[1761680794759,0.50894276,4053.8,4053.3,0.002]
[1761680794965,2.19673618,4054.0,4053.3,0.002]
[1761680794966,0.50894276,4053.7,4053.3,0.002]
[1761680795257,0.50894276,4053.8,4053.3,0.002]
[1761680795572,0.50894276,4053.7,4053.3,0.002]
[1761680795865,0.50894276,4053.6,4053.3,0.002]
[1761680796171,0.64153618,4053.8,4053.3,0.002]
[1761680796172,2.46685113,4053.8,4053.3,0.002]
[1761680796343,2.46689996,4053.7,4053.3,0.002]
[1761680796543,0.50894276,4053.7,4053.3,0.002]
[1761680796945,2.97581898,4053.8,4053.3,0.002]
[1761680797147,2.46687622,4053.8,4053.3,0.002]
[1761680797352,2.97581898,4053.8,4053.5,0.002]
[1761680797554,0.50894276,4053.7,4053.5,0.002]
[1761680797950,2.46688779,4053.7,4053.5,0.002]
[1761680798147,2.91978779,4053.7,4053.5,0.002]
[1761680798354,0.50894276,4053.6,4053.5,0.002]
[1761680798690,0.50894276,4053.7,4053.5,0.002]
[1761680798970,2.46694296,4053.6,4053.5,0.002]
[1761680799151,0.96184276,4053.7,4053.5,0.002]
[1761680799349,4.53097278,4053.8,4053.5,0.002]
[1761680799553,0.50894276,4053.7,4053.5,0.002]
[1761680800149,1.5552,4054.0,4053.5,0.002]
[1761680800341,2.19673618,4054.1,4053.5,0.002]
[1761680800548,2.46693685,4053.7,4053.5,0.002]
[1761680800766,2.97587961,4053.7,4053.5,0.002]
[1761680800976,2.46694296,4053.6,4053.5,0.002]
[1761680801361,0.9443048,4053.7,4053.5,0.002]
[1761680801559,3.10896637,4054.0,4053.5,0.002]
[1761680801763,4.4524604,4053.9,4053.5,0.002]
[1761680801959,2.0690048,4053.8,4053.5,0.002]
[1761680802174,0.9443048,4053.8,4053.5,0.002]
[1761680802485,1.5552,4053.8,4053.5,0.002]
[1761680802794,0.5138048,4053.8,4053.5,0.002]
[1761680803095,2.256,4054.0,4053.5,2.46894498]
[1761680803302,6.79170742,4054.0,4053.5,0.002]
[1761680803449,2.0690048,4053.9,4053.5,0.002]
[1761680803954,0.4305,4053.9,4053.5,0.002]
[1761680804142,2.4669247,4053.7,4053.5,0.002]
[1761680804480,0.5138048,4053.7,4053.5,0.002]
[1761680805477,4.66415892,4054.0,4053.5,0.002]
[1761680805695,2.46691585,4053.7,4053.5,0.002]
[1761680805896,0.5138048,4053.7,4053.5,0.002]
[1761680806060,0.4305,4053.9,4053.5,0.002]
[1761680806265,2.89726168,4053.9,4053.5,0.002]
[1761680806565,2.0690048,4053.8,4053.5,0.002]
[1761680807412,0.5138048,4053.8,4053.5,0.002]
[1761680807697,2.254,4054.0,4053.5,0.002]
[1761680807901,1.5552,4053.9,4053.5,2.46899841]
[1761680808204,0.5138048,4053.9,4053.8,2.46682125]
[1761680808405,0.51388043,4054.8,4053.6,0.456]
[1761680808603,0.2314,4054.9,4054.3,2.46650301]
[1761680808788,0.74528043,4054.9,4054.3,2.46650301]
[1761680808988,0.51388043,4055.0,4054.4,2.66825551]
[1761680809365,2.76688043,4055.1,4054.4,0.2018]
[1761680809570,0.51388043,4055.0,4054.5,3.8]
[1761680809771,2.97997498,4055.0,4054.5,3.8]
[1761680809965,2.97998539,4055.0,4054.5,3.8]
[1761680810196,3.13250027,4054.9,4054.5,3.8]
[1761680810408,0.51388043,4054.8,4054.1,2.4538]
[1761680810572,2.76688043,4055.1,4054.3,2.46650309]
[1761680810783,0.51388043,4055.0,4054.8,2.46620704]
[1761680811003,5.36009267,4055.5,4054.3,3.8]
[1761680811004,4.53494031,4055.4,4054.6,2.46629066]
[1761680811201,0.51388043,4055.3,4054.5,2.252]
[1761680811398,2.49958043,4055.4,4054.5,2.252]
[1761680811711,2.4659157,4055.3,4054.6,2.46627673]
[1761680812007,0.51388043,4055.3,4054.6,2.46627673]
[1761680812211,2.97977596,4055.4,4054.6,2.46627673]
[1761680812409,0.51388043,4055.3,4054.7,2.46624403]
[1761680812584,0.51388043,4055.5,4054.5,2.252]
[1761680812911,2.46586493,4055.4,4054.5,2.252]
[1761680813113,2.46590881,4055.3,4054.1,0.2018]
[1761680813315,2.46590881,4055.3,4054.1,4.91942021]
[1761680813316,2.46603043,4055.1,4054.1,4.91942021]
[1761680813496,2.46622523,4054.8,4054.1,4.91942021]
[1761680813694,2.46622523,4054.8,4054.2,3.8]
[1761680813884,2.70196597,4054.9,4054.2,6.26656824]
[1761680814081,0.93998158,4055.8,4054.1,2.4528]
[1761680814288,2.4657264,4055.6,4054.9,2.46614615]
[1761680814603,2.06953015,4055.7,4054.6,2.251]
[1761680814802,2.252,4056.0,4054.7,0.02466273]
[1761680814976,0.51433015,4056.1,4054.7,0.456]
[1761680815180,1.5552,4056.0,4055.4,2.46580307]
[1761680815383,0.51433015,4056.0,4055.4,2.46579191]
[1761680815690,0.51433015,4056.0,4055.3,0.1898]
[1761680815893,2.06953015,4056.2,4055.6,2.46568853]
[1761680816098,0.51433015,4056.2,4055.7,2.46561444]
[1761680816409,1.5552,4056.2,4055.6,2.252]
[1761680816583,4.02063996,4056.1,4055.6,2.252]
[1761680816783,0.638,4056.6,4055.6,2.252]
[1761680816784,2.46537063,4056.2,4055.6,2.252]
[1761680817098,2.4654404,4056.1,4055.6,2.252]
[1761680817419,1.5552,4056.2,4055.0,0.1898]
[1761680817623,1.5552,4055.5,4054.4,0.1898]
[1761680817788,1.58073785,4056.3,4054.4,0.1898]
[1761680817789,3.8062,4055.6,4054.6,0.998]
[1761680817988,4.53551895,4055.5,4054.7,2.46622979]
[1761680818183,2.9805039,4055.4,4054.7,2.46622979]
[1761680818420,0.1232,4054.8,4054.7,2.46622979]
[1761680819319,0.1232,4054.8,4054.7,2.92222979]
[1761680819687,0.1232,4055.1,4055.0,2.46606273]
[1761680819889,0.1232,4055.1,4054.7,0.456]
[1761680820089,0.51452785,4055.6,4054.6,0.998]
[1761680820289,4.53548351,4055.6,4054.9,2.46614191]
[1761680820528,0.51452785,4055.5,4054.6,0.998]
[1761680820726,0.1232,4054.9,4054.6,3.46429278]
[1761680820940,0.1232,4054.9,4054.6,0.998]
[1761680821241,0.1232,4054.9,4054.8,2.46621288]
[1761680821540,2.0696917,4055.6,4055.0,2.46608194]
[1761680821735,0.1232,4055.1,4054.7,2.46622897]
[1761680821900,0.1232,4055.1,4054.6,3.4643167]
[1761680822101,0.1232,4055.1,4054.6,0.998]
[1761680822417,0.4305,4055.0,4054.7,2.249]
[1761680822599,2.46589615,4055.4,4054.7,2.249]
[1761680822799,1.5552,4055.6,4054.9,2.46613819]
[1761680823029,4.02102765,4055.5,4054.8,2.46619412]
[1761680823215,0.1232,4054.9,4054.7,2.249]
[1761680824223,0.1232,4054.9,4054.1,0.771]
[1761680824461,0.2358,4054.9,4054.2,2.249]
[1761680824622,0.1232,4054.5,4054.4,2.46645619]
[1761680824825,0.1232,4054.8,4054.6,2.46629256]
[1761680825011,0.1232,4054.8,4054.7,2.249]
[1761680826604,0.1232,4054.8,4054.7,5.1712737]
[1761680827133,0.1232,4054.8,4054.7,2.705]
[1761680827334,0.1232,4054.8,4054.7,2.249]
[1761680829504,0.1232,4054.8,4054.1,0.1918]
[1761680829505,0.564,4054.8,4054.1,0.1918]
[1761680829712,4.02151542,4054.7,4054.2,2.249]
[1761680830441,2.46633655,4054.6,4054.2,2.249]
[1761680830761,2.4664972,4054.4,4054.2,2.249]
[1761680830981,0.4333,4054.5,4054.1,0.002]
[1761680831120,2.46657786,4054.2,4054.1,0.002]
[1761680831321,4.71557786,4054.2,4054.1,0.002]
[1761680831625,5.66309699,4054.2,4054.1,0.002]
[1761680832720,7.21829699,4054.2,4054.1,0.002]
[1761680833344,2.06941913,4054.2,4054.1,0.002]
[1761680833562,4.02177786,4054.2,4054.1,0.002]
[1761680833767,4.53599699,4054.2,4054.1,0.002]
[1761680834136,4.96929699,4054.2,4054.1,0.002]
[1761680835367,2.50271913,4054.2,4054.1,0.002]
[1761680835538,4.45507786,4054.2,4054.1,0.002]
[1761680835723,4.96929699,4054.2,4054.1,0.002]
[1761680835926,4.53599699,4054.2,4054.1,0.002]
[1761680836355,2.06941913,4054.2,4054.1,0.002]
[1761680836558,4.02177786,4054.2,4054.1,0.002]
[1761680836741,4.53599699,4054.2,4054.1,0.002]
[1761680837645,4.96929699,4054.2,4054.1,0.002]
[1761680837847,4.31841913,4054.2,4054.1,0.002]
[1761680838035,6.78499699,4054.2,4054.1,0.002]
[1761680838242,4.53599699,4054.2,4054.1,0.002]
[1761680839262,4.96929699,4054.2,4054.1,0.002]
[1761680839643,2.06941913,4054.2,4054.1,0.002]
[1761680839841,4.02177786,4054.2,4054.1,0.002]
[1761680840162,4.53599699,4054.2,4054.1,0.002]
[1761680840361,4.96929699,4054.2,4054.1,0.002]
[1761680841161,7.21829699,4054.2,4054.1,0.002]
[1761680843281,7.62380099,4054.2,4054.1,0.002]
[1761680843769,8.266057,4054.2,4054.1,0.002]
[1761680844170,8.47918257,4054.2,4054.1,0.002]
[1761680845339,2.8723861,4053.7,4053.5,0.002]
[1761680845650,21.07480326,4053.7,4053.5,0.002]
[1761680845970,22.02232239,4053.7,4053.5,0.002]
[1761680846168,22.87857086,4053.7,4053.5,0.002]
[1761680846340,8.26732901,4053.7,4053.5,0.002]
[1761680846741,7.62510523,4053.7,4053.5,0.002]
[1761680846945,8.26737779,4053.7,4053.5,0.002]
[1761680851245,22.02232239,4053.7,4053.5,0.002]
[1761680851679,22.87849411,4053.7,4053.5,0.002]
[1761680851847,22.02232239,4053.7,4053.5,0.002]
[1761680853760,19.77232239,4053.7,4053.5,0.002]
[1761680854082,22.02232239,4053.7,4053.5,0.002]
[1761680854471,22.87869481,4053.7,4053.5,0.002]
[1761680855578,22.02232239,4053.7,4053.5,0.002]
[1761680855883,22.02232239,4053.7,4053.2,1e-08]
[1761680855884,4.42782955,4053.3,4053.2,1e-08]
[1761680856076,8.47663666,4053.3,4053.2,1e-08]
[1761680856265,8.90993666,4053.3,4053.2,1e-08]
[1761680856465,3.10013392,4052.8,4052.7,1e-08]
[1761680856673,4.65533392,4052.8,4052.7,1e-08]
[1761680856874,7.85255305,4052.8,4052.7,1e-08]
[1761680857285,22.24977021,4052.8,4052.7,1e-08]
[1761680858780,23.5341557,4052.8,4052.7,1e-08]
[1761680858954,22.24977021,4052.8,4052.7,1e-08]
[1761680861880,9.13681083,4052.8,4052.7,1e-08]
[1761680862079,6.04830683,4052.8,4052.7,1e-08]
[1761680862280,7.01404905,4052.8,4052.7,1e-08]
[1761680862487,7.85025305,4052.8,4052.7,1e-08]
[1761680862793,3.20884905,4052.8,4052.7,1e-08]
[1761680862997,2.98164905,4052.8,4052.7,1e-08]
[1761680863172,6.78684905,4052.8,4052.7,1e-08]
[1761680863370,7.19235305,4052.8,4052.7,1e-08]
[1761680863562,7.62305305,4052.8,4052.7,1e-08]
[1761680863762,8.04865816,4052.8,4052.7,1e-08]
[1761680864089,7.19235305,4052.8,4052.7,1e-08]
[1761680865993,8.47935816,4052.8,4052.7,1e-08]
[1761680866602,8.04865816,4052.8,4052.7,1e-08]
[1761680868210,5.37305305,4052.8,4052.7,1e-08]
[1761680868384,7.62305305,4052.8,4052.7,1e-08]
[1761680871099,4.42843837,4052.3,4052.2,0.002]
[1761680871300,7.1926575,4052.3,4052.2,0.002]
[1761680871501,7.6233575,4052.3,4052.2,0.002]
[1761680872492,7.1926575,4052.3,4052.2,0.002]
[1761680872876,7.6233575,4052.3,4052.2,0.002]
[1761680875728,12.37605647,4052.3,4052.2,0.002]
[1761680876780,11.94535647,4052.3,4052.2,0.002]
[1761680877310,12.37605647,4052.3,4052.2,0.002]
[1761680877711,11.94535647,4052.3,4052.2,0.002]
[1761680878299,4.9426575,4052.3,4052.2,0.002]
[1761680878503,7.1926575,4052.3,4052.2,0.002]
[1761680880634,7.6233575,4052.3,4052.2,0.002]
[1761680881045,2.46864816,4050.8,4050.7,0.1898]
[1761680881342,2.46864816,4050.8,4050.7,0.6574]
[1761680881640,2.98286729,4050.8,4050.7,0.6574]
[1761680882196,0.51421913,4050.8,4050.7,0.6574]
[1761680882395,2.46864816,4050.8,4050.7,0.6574]
[1761680882715,1.15955289,4050.9,4050.7,0.6574]
[1761680883026,0.1232,4050.7,4050.1,0.1898]
[1761680883342,1.5552,4050.6,4050.1,0.1898]
[1761680883541,4.53819161,4050.6,4050.2,0.4676]
[1761680883698,0.51421913,4050.5,4050.2,0.4676]
[1761680883894,2.06941913,4050.6,4050.2,0.4676]
[1761680884139,0.51421913,4050.6,4050.2,1.0086099]
[1761680884321,2.06941913,4050.7,4050.2,0.4676]
[1761680884652,0.51421913,4050.7,4050.3,0.4676]
[1761680884848,3.8052,4051.0,4050.5,2.468831]
[1761680885150,0.1232,4050.4,4050.3,0.4676]
[1761680885300,0.1232,4050.4,4050.3,2.46895291]
[1761680885724,0.1232,4050.4,4050.3,2.98172974]
[1761680885999,0.1232,4050.4,4050.3,3.44932974]
[1761680887326,0.1232,4050.4,4050.3,3.45132974]
[1761680887494,0.51421913,4051.4,4050.3,1.00706635]
[1761680887694,0.51421913,4051.4,4051.3,0.19]
[1761680887938,0.1232,4051.4,4051.3,0.6576]
[1761680888142,0.51421913,4052.4,4051.8,2.46798848]
[1761680888294,0.64533376,4052.5,4052.4,0.2026]
[1761680888295,0.51421913,4052.5,4052.4,0.2026]
[1761680888506,0.51521913,4052.8,4052.4,0.2026]
[1761680888702,0.001,4052.8,4052.7,2.4674908]
[1761680889136,0.001,4052.8,4052.7,0.4387]
[1761680889832,0.001,4052.8,4052.4,0.6448]
[1761680890222,0.001,4052.8,4052.5,0.4422]
[1761680890900,0.001,4052.8,4052.7,2.4674908]
[1761680891333,0.001,4052.8,4052.7,2.9096908]
[1761680891839,0.001,4052.8,4052.7,5.1586908]
[1761680893309,0.001,4052.8,4052.7,7.1193948]
[1761680893722,0.001,4052.8,4052.7,4.4648908]
[1761680894049,0.001,4052.8,4052.7,7.45852571]
[1761680894247,0.001,4052.8,4052.7,5.90332571]
[1761680894452,0.001,4052.8,4052.7,5.1586908]
[1761680894610,0.001,4052.8,4052.7,8.9586908]
[1761680897450,0.001,4052.8,4052.4,0.2026]
[1761680897760,0.001,4052.8,4049.8,0.002]
[1761680897761,0.4483,4052.8,4051.9,0.2026]
[1761680897921,1.960704,4052.5,4051.0,2.46851572]
[1761680898241,0.1232,4051.4,4051.0,2.248]
[1761680898742,0.1232,4051.4,4051.0,0.4422]
[1761680899058,0.1232,4051.4,4050.7,2.46870222]
[1761680899246,2.46829411,4051.4,4050.8,2.248]
[1761680899418,1.5552,4051.5,4050.7,0.4422]
[1761680899419,0.1232,4051.0,4050.7,0.4422]
[1761680899620,0.1232,4050.8,4050.7,2.6902]
[1761680899873,0.1232,4050.8,4050.7,5.15890911]
[1761680900024,1.5552,4052.1,4050.7,3.17020323]
[1761680900224,0.1232,4051.0,4050.7,2.248]
[1761680900723,2.46850816,4051.1,4050.6,3.8]
[1761680900928,2.46862339,4050.9,4050.4,2.248]
[1761680901177,2.46852983,4051.0,4050.4,2.248]
[1761680901383,0.1232,4050.4,4050.3,0.002]
[1761680902074,0.1232,4050.4,4050.3,0.4442]
[1761680902677,0.1232,4050.4,4050.3,2.91315291]
[1761680903179,0.1232,4050.4,4050.3,0.4442]
[1761680903759,0.1232,4050.4,4050.3,6.71315291]
[1761680903963,0.1232,4050.4,4050.3,4.2442]
[1761680904177,0.1232,4050.4,4050.3,2.91315291]
[1761680904425,1.9452,4051.9,4050.7,2.46867917]
[1761680904630,2.46814598,4051.7,4050.9,2.46857852]
[1761680905075,2.249,4052.1,4050.7,8.51770855]
[1761680905076,2.249,4052.1,4051.0,0.4422]
[1761680905228,0.1232,4051.0,4050.8,2.46863949]
[1761680905900,0.1232,4051.0,4050.3,0.002]
[1761680905901,0.39,4051.0,4050.3,0.002]
[1761680906083,0.405504,4051.8,4050.3,0.002]
[1761680906084,1.5552,4050.9,4050.3,0.002]
[1761680906277,0.6249,4051.7,4050.4,2.91108145]
[1761680906484,2.46822482,4051.5,4050.5,0.4422]
[1761680906784,2.249,4051.8,4050.5,0.4422]
[1761680906929,1.5552,4051.7,4051.1,2.46842334]
[1761680907282,0.001,4052.2,4051.2,3.8]
[1761680907443,0.001,4052.2,4051.7,0.19]
[1761680907629,0.001,4052.2,4051.8,2.6912]
[1761680908029,0.001,4052.2,4051.9,2.46797737]
[1761680908229,0.001,4052.2,4051.8,8.95922269]
[1761680908473,0.001,4052.2,4051.9,0.4422]
[1761680908668,0.001,4052.2,4051.9,3.82508551]
[1761680909173,0.001,4052.2,4052.0,6.049]
[1761680909373,0.001,4052.2,4052.0,3.8]
[1761680909553,0.001,4052.2,4052.0,6.71006185]
[1761680910132,0.001,4052.2,4052.0,3.8]
[1761680910380,0.001,4052.2,4052.1,0.4422]
[1761680911379,0.001,4052.2,4052.0,3.8]
[1761680912230,0.001,4052.2,4051.8,4.71703518]
[1761680912648,0.001,4052.2,4051.8,5.15923518]
[1761680913447,0.001,4052.2,4051.8,4.71701949]
[1761680913749,0.001,4052.2,4051.9,0.4422]
[1761680914067,0.001,4052.2,4051.9,2.91015984]
[1761680914726,0.001,4052.2,4051.8,3.11970195]
[1761680914727,0.001,4052.2,4052.1,2.46785617]
[1761680915182,0.001,4052.2,4052.0,2.91010334]
[1761680915485,0.001,4052.2,4051.8,3.11970195]
[1761680915649,0.001,4052.2,4051.9,2.46797591]
[1761680915851,0.1232,4052.0,4051.9,2.46797591]
[1761680916786,0.1232,4052.0,4051.9,2.91017591]
[1761680917342,0.1232,4052.0,4051.9,2.91017798]
[1761680917579,0.1232,4052.0,4051.5,3.8]
[1761680917779,0.001,4052.2,4051.5,3.8]
[1761680917780,0.001,4052.2,4051.6,2.248]
[1761680917980,0.1232,4051.8,4051.7,2.4680998]
[1761680918290,2.46853057,4052.7,4051.7,2.4680998]
[1761680918291,0.001,4052.7,4052.1,0.19]
[1761680918509,0.001,4053.7,4052.7,2.4674908]
[1761680918771,0.001,4053.7,4052.7,6.2674908]
[1761680918959,0.001,4053.7,4052.7,3.89873264]
[1761680919162,1.5562,4053.3,4052.7,6.058]
[1761680919362,2.46814015,4053.3,4052.7,6.058]
[1761680919739,0.001,4053.3,4052.7,6.058]
[1761680919939,0.001,4053.3,4052.7,3.8]
[1761680919940,2.46720147,4053.2,4052.7,3.8]
[1761680920271,0.2173,4052.9,4052.6,0.09875336]
[1761680920471,2.4674908,4052.7,4052.4,1.903]
[1761680920676,1.5552,4052.5,4052.0,0.74074897]
[1761680920872,1.5552,4052.5,4051.5,2.46816181]
[1761680921070,2.46776722,4052.3,4051.6,2.258]
[1761680921269,0.405504,4052.4,4051.5,0.74080384]
[1761680921477,2.46796745,4052.0,4051.5,2.258]
[1761680921645,2.46786388,4052.1,4051.5,2.258]
[1761680921845,2.46768119,4052.4,4051.6,2.46815589]
[1761680922046,0.405504,4052.4,4051.3,0.406504]
[1761680922289,2.46813059,4051.7,4050.9,2.46853547]
[1761680922489,1.960704,4052.2,4050.7,2.46865455]
[1761680922688,2.46822228,4051.5,4050.9,2.258]
[1761680922896,2.4681757,4051.6,4050.9,2.258]
[1761680923392,2.46816263,4051.6,4050.9,2.258]
[1761680923562,2.4682625,4051.5,4050.9,2.258]
[1761680923761,0.3265,4051.6,4050.6,3.8]
[1761680923971,0.405504,4051.6,4049.5,0.4495]
[1761680924170,0.405504,4051.2,4050.1,0.9298]
[1761680924381,2.46861027,4050.9,4050.1,3.3988716]
[1761680924593,2.46854162,4051.0,4050.2,6.26900238]
[1761680924962,2.46851256,4051.1,4050.5,0.002]
[1761680925360,4.02371413,4051.1,4050.5,0.002]
[1761680925565,2.46857558,4051.0,4050.5,0.002]
[1761680926494,2.46848363,4051.1,4050.5,0.002]
[1761680926792,2.46846535,4051.1,4050.5,0.002]
[1761680926980,2.46852628,4051.0,4050.5,0.002]
[1761680927184,2.46860999,4050.9,4050.5,0.002]
[1761680927604,2.79510999,4050.9,4050.5,0.002]
[1761680927788,0.3265,4050.9,4050.5,0.002]
[1761680928270,0.3265,4050.8,4050.5,0.002]
[1761680928609,2.79516678,4050.8,4050.5,0.002]
[1761680928779,0.405504,4051.1,4050.5,0.002]
[1761680929504,1.5552,4051.0,4050.5,0.002]
[1761680929794,2.46864816,4050.8,4050.5,0.002]
[1761680930301,2.49339095,4050.8,4050.5,0.002]
[1761680930798,2.49339095,4050.8,4050.1,3.40087178]
[1761680931196,0.0247,4050.8,4050.2,2.46901387]
[1761680931566,0.1232,4050.2,4050.1,0.002]
[1761680932796,0.1232,4050.2,4050.1,2.47107483]
[1761680933009,0.1232,4050.2,4050.1,1.09122683]
[1761680933677,0.1232,4050.2,4050.1,3.56030166]
[1761680933879,0.1232,4050.2,4050.1,3.75010166]
[1761680934184,0.1232,4050.4,4050.3,2.46895291]
[1761680934507,0.1232,4050.4,4050.3,5.66086981]
[1761680934687,0.1232,4050.4,4050.3,5.63618029]
[1761680935800,0.1232,4050.4,4050.3,6.08568029]
[1761680938634,0.1232,4050.4,4050.3,9.78568029]
[1761680938833,0.0247,4050.8,4050.7,2.46870911]
[1761680939007,0.1479,4050.8,4050.7,4.96458002]
[1761680939201,0.1479,4050.8,4050.7,2.46870911]
[1761680939397,0.1479,4050.8,4050.7,5.16720911]
[1761680939598,0.1479,4050.8,4050.7,2.6985]